fUSD/lending_fUSD_20250930
["ID","MTS","AMOUNT","RATE_DAILY","PERIOD"]
[388615852,1759255840779,-3490783.84621375,0.0001888,2]
[388615862,1759255843969,-6149.79240806,0.0001888,2]
[388615863,1759255844023,-14782.07163992,0.0001888,2]
[388615864,1759255844115,-440223.5563457,0.0001888,2]
[388615865,1759255844125,-199.62739783,0.0001888,2]
[388615866,1759255844135,-151.0,0.0001888,2]
[388615867,1759255844144,-161.7382317,0.0001888,2]
[388615868,1759255844153,-5920.46904,0.0001888,2]
[388615869,1759255844163,-5535.67137987,0.00018901,2]
[388615870,1759255844173,-2754.5440828,0.00018912,2]
[388615871,1759255844182,-5535.67137987,0.00018945,2]
[388615872,1759255844191,-2754.5440828,0.00018946,2]
[388615873,1759255844200,-170.16,0.00018973,2]
[388615874,1759255844209,-1343.18795472,0.00018974,2]
[388615875,1759255844219,-2754.5440828,0.00018979,2]
[388615876,1759255844228,-5535.67137987,0.00018989,2]
[388615877,1759255844237,-150.7,0.0001899,2]
[388615878,1759255844246,-1311.69,0.00019,2]
[388615879,1759255844255,-1311.69,0.00019,2]
[388615880,1759255844264,-1324.0,0.00019,2]
[388615881,1759255844273,-1324.0,0.00019,2]
[388615882,1759255844282,-19860.0,0.00019,2]
[388615883,1759255844291,-19860.0,0.00019,2]
[388615884,1759255844300,-7944.0,0.00019,2]
[388615885,1759255844310,-7944.0,0.00019,2]
[388615886,1759255844319,-756.77,0.00019,2]
[388615887,1759255844328,-756.77,0.00019,2]
[388615888,1759255844337,-13390.53466565,0.00019,2]
[388615889,1759255844346,-2299.99999601,0.00019,2]
[388615890,1759255844355,-2754.5440828,0.00019012,2]
[388615891,1759255844364,-5535.67137987,0.00019033,2]
[388615892,1759255844374,-2754.5440828,0.00019045,2]
[388615893,1759255844384,-5535.67137987,0.00019077,2]
[388615894,1759255844393,-2754.5440828,0.00019078,2]
[388615895,1759255844403,-1330.35,0.00019085,2]
[388615896,1759255844414,-151.0,0.00019085,2]
[388615897,1759255844423,-1000.0,0.00019099,2]
[388615898,1759255844433,-1000.0,0.00019099,2]
[388615899,1759255844441,-5920.46905,0.000191,2]
[388615900,1759255844450,-150.7,0.0001914,2]
[388615901,1759255844460,-150.7,0.00019149,2]
[388615902,1759255844469,-67209.00013502,0.0001915,2]
[388615903,1759255844478,-93084.47038563,0.00019159,2]
[388615904,1759255844488,-682.13059227,0.0001916,2]
[388615905,1759255844498,-295.44977946,0.00019167,2]
[388615906,1759255844507,-150.7,0.00019167,2]
[388615907,1759255844516,-150.7,0.00019167,2]
[388615908,1759255844525,-150.7,0.00019167,2]
[388615909,1759255844540,-150.7,0.00019167,2]
[388615910,1759255844549,-150.7,0.00019167,2]
[388615911,1759255844561,-150.7,0.00019167,2]
[388615912,1759255844575,-150.7,0.00019167,2]
[388615913,1759255844586,-150.7,0.00019167,2]
[388615914,1759255844595,-150.7,0.00019167,2]
[388615915,1759255844605,-500.0,0.00019173,2]
[388615916,1759255844614,-500.0,0.00019173,2]
[388615917,1759255844623,-500.0,0.00019173,2]
[388615918,1759255844632,-159.99936,0.00019173,2]
[388615919,1759255844645,-500.0,0.00019173,2]
[388615920,1759255844654,-500.0,0.00019173,2]
[388615921,1759255844664,-500.0,0.00019173,2]
[388615922,1759255844675,-502.33996231,0.00019173,2]
[388615923,1759255844683,-500.0,0.00019173,2]
[388615924,1759255844693,-500.0,0.00019173,2]
[388615925,1759255844702,-500.0,0.00019173,2]
[388615926,1759255844711,-500.0,0.00019173,2]
[388615927,1759255844724,-500.0,0.00019173,2]
[388615928,1759255844733,-500.0,0.00019173,2]
[388615929,1759255844742,-160.14845365,0.00019173,2]
[388615930,1759255844751,-500.0,0.00019173,2]
[388615931,1759255844760,-500.0,0.00019173,2]
[388615932,1759255844769,-500.0,0.00019173,2]
[388615933,1759255844779,-500.0,0.00019173,2]
[388615934,1759255844788,-500.0,0.00019173,2]
[388615935,1759255844798,-500.0,0.00019173,2]
[388615936,1759255844807,-500.0,0.00019173,2]
[388615937,1759255844817,-500.0,0.00019173,2]
[388615938,1759255844826,-512.93992176,0.00019173,2]
[388615939,1759255844835,-500.0,0.00019173,2]
[388615940,1759255844844,-500.0,0.00019173,2]
[388615941,1759255844854,-500.0,0.00019173,2]
[388615942,1759255844863,-500.0,0.00019173,2]
[388615943,1759255844873,-500.0,0.00019173,2]
[388615944,1759255844882,-1568512.168991,0.00019177,2]
[388615945,1759255844891,-151.0,0.00019178,2]
[388615946,1759255844900,-5000.0,0.00019178,2]
[388615947,1759255844911,-150.0,0.00019178,2]
[388615948,1759255844920,-1311.69,0.000192,2]
[388615949,1759255844929,-1324.0,0.000192,2]
[388615950,1759255844938,-19860.0,0.000192,2]
[388615951,1759255844947,-7944.0,0.000192,2]
[388615952,1759255844956,-756.77,0.000192,2]
[388615953,1759255844965,-168.0,0.00019218,2]
[388615954,1759255845302,-304.31,0.00019227,2]
[388615955,1759255845326,-168.0,0.00019269,2]
[388615956,1759255845335,-1200.0,0.00019299,2]
[388615957,1759255845344,-168.0,0.00019308,2]
[388615958,1759255845354,-200.0,0.00019324,2]
[388615959,1759255845363,-334.5472959,0.00019358,2]
[388615960,1759255845373,-160.0,0.00019358,2]
[388615961,1759255845382,-239.84119403,0.00019358,2]
[388615962,1759255845391,-1330.35,0.00019359,2]
[388615963,1759255845401,-168.0,0.00019361,2]
[388615964,1759255845411,-1000.0,0.00019421,2]
[388615965,1759255845420,-1000.0,0.00019421,2]
[388615966,1759255845429,-1000.0,0.00019421,2]
[388615967,1759255845439,-168.0,0.00019448,2]
[388615968,1759255845448,-621.0,0.0001945,2]
[388615969,1759255845457,-6245.299,0.0001945,2]
[388615970,1759255845466,-4113.0,0.0001945,2]
[388615971,1759255845475,-18919.0,0.0001945,2]
[388615972,1759255845485,-153.0,0.0001945,2]
[388615973,1759255845495,-69461.9476788,0.00019454,2]
[388615974,1759255845505,-4000.0,0.000195,2]
[388615975,1759255845514,-1311.69,0.000195,2]
[388615976,1759255845524,-1324.0,0.000195,2]
[388615977,1759255845534,-19860.0,0.000195,2]
[388615978,1759255845543,-7944.0,0.000195,2]
[388615979,1759255845553,-756.77,0.000195,2]
[388615980,1759255845562,-300.97,0.000195,2]
[388615981,1759255845572,-302.11,0.000195,2]
[388615982,1759255845581,-5073.0,0.000195,2]
[388615983,1759255845591,-420.0,0.00019516,2]
[388615984,1759255845600,-5073.0,0.00019524,2]
[388615985,1759255845609,-168.0,0.00019547,2]
[388615986,1759255845619,-5920.46905,0.000196,2]
[388615987,1759255845628,-1680.0,0.00019612,2]
[388615988,1759255845641,-1330.35,0.00019633,2]
[388615989,1759255845651,-168.0,0.00019638,2]
[388615990,1759255845662,-1000.0,0.00019669,2]
[388615991,1759255845671,-274.97,0.00019673,2]
[388615992,1759255845680,-790.28217104,0.00019721,2]
[388615993,1759255845690,-424.27112096,0.00019721,2]
[388615994,1759255845699,-1000.0,0.00019721,2]
[388615995,1759255845708,-1000.0,0.00019721,2]
[388615996,1759255845717,-1000.0,0.00019721,2]
[388615998,1759255845727,-1000.0,0.00019721,2]
[388615999,1759255845735,-1000.0,0.00019721,2]
[388616000,1759255845744,-1000.0,0.00019721,2]
[388616001,1759255845753,-1000.0,0.00019721,2]
[388616002,1759255845762,-1000.0,0.00019721,2]
[388616003,1759255845771,-1000.0,0.00019721,2]
[388616004,1759255845780,-1000.0,0.00019721,2]
[388616005,1759255845790,-1000.0,0.00019721,2]
[388616006,1759255845799,-1000.0,0.00019721,2]
[388616007,1759255845808,-695.451848,0.00019721,2]
[388616008,1759255845818,-1000.0,0.00019721,2]
[388616009,1759255845827,-766.46551295,0.00019721,2]
[388616010,1759255845836,-485.15897709,0.00019721,2]
[388616011,1759255845845,-1028.73200569,0.00019721,2]
[388616012,1759255845855,-1000.0,0.00019721,2]
[388616013,1759255845864,-829.41569127,0.00019721,2]
[388616014,1759255845873,-1000.0,0.00019721,2]
[388616015,1759255845883,-1000.0,0.00019721,2]
[388616017,1759255845892,-641.76988814,0.00019721,2]
[388616019,1759255845902,-1000.0,0.00019721,2]
[388616021,1759255845911,-250.0,0.00019726,2]
[388616022,1759255845921,-156.587,0.00019726,2]
[388616023,1759255845930,-5888.0,0.00019726,2]
[388616024,1759255845941,-168.0,0.0001973,2]
[388616025,1759255845950,-169.62,0.00019732,2]
[388616026,1759255845960,-2044.0,0.00019778,2]
[388616027,1759255845969,-889.448,0.00019778,2]
[388616028,1759255845979,-3398.0,0.00019778,2]
[388616029,1759255845989,-1264.0,0.00019778,2]
[388616030,1759255845998,-1584.0,0.00019778,2]
[388616031,1759255846007,-603.0,0.00019778,2]
[388616032,1759255846016,-1306.0,0.00019778,2]
[388616033,1759255846026,-570.0,0.00019778,2]
[388616034,1759255846035,-816.0,0.00019778,2]
[388616035,1759255846045,-2083.09,0.000198,7]
[388616036,1759255846054,-7000.0,0.000198,2]
[388616037,1759255846064,-3069.0,0.00019844,2]
[388616038,1759255846073,-168.0,0.00019849,2]
[388616039,1759255846083,-150.0,0.00019873,2]
[388616040,1759255846092,-1311.69,0.000199,2]
[388616041,1759255846102,-1324.0,0.000199,2]
[388616042,1759255846111,-14767.32970988,0.000199,2]
[388616048,1759255847930,-151.0,0.00019218,2]
[388616049,1759255847940,-166.35616486,0.00019218,2]
[388616050,1759255847949,-4115.33985114,0.000199,2]
[388616051,1759255848278,-385.47304823,0.000199,2]
[388616052,1759255848290,-591.85739075,0.000199,2]
[388616053,1759255848299,-4968.52648,0.000199,2]
[388616054,1759255848543,-722.0,0.000199,2]
[388616055,1759255848555,-280.45,0.000199,2]
[388616056,1759255848566,-377.82208087,0.000199,2]
[388616057,1759255848578,-1595.20143913,0.000199,2]
[388616058,1759255848588,-407.04856086,0.000199,2]
[388616059,1759255848600,-349.72143914,0.000199,2]
[388616060,1759255848609,-1039.47855086,0.000199,2]
[388616061,1759255848620,-1098.0,0.000199,2]
[388616062,1759256060307,518.71131073,0.0003,120]
[388616063,1759256217752,2000.0,0.00019,120]
[388616064,1759256457370,285.58,0.00026076,120]
[388616065,1759256458272,285.58,0.00028446,120]
[388616066,1759256563492,224.28,9.065e-05,2]
[388616068,1759256803242,6840.7,0.00013,3]
[388616077,1759256922449,319.33718055,0.0001,2]
[388616085,1759257033429,-170.96426968,0.000169,2]
[388616086,1759257033440,-195.24302286,0.000169,2]
[388616087,1759257033450,-161.89065442,0.00016911,2]
[388616088,1759257033459,-500.0,0.00016973,2]
[388616089,1759257033469,-500.0,0.00016973,2]
[388616090,1759257033478,-1200.0,0.00016998,2]
[388616091,1759257033487,-1043.56902606,0.00016999,5]
[388616092,1759257033546,-49.747156,0.00016999,5]
[388616093,1759257033555,-500.0,0.00016999,2]
[388616094,1759257033564,-348.332832,0.00016999,2]
[388616115,1759257038084,-290.76690088,0.00016999,2]
[388616116,1759257038094,-169.5603233,0.00016999,2]
[388616117,1759257038103,-500.0,0.00016999,2]
[388616118,1759257038112,-500.0,0.00016999,2]
[388616119,1759257038122,-250.0,0.00016999,2]
[388616120,1759257038131,-500.0,0.00016999,2]
[388616121,1759257038140,-500.0,0.00016999,2]
[388616122,1759257038150,-262.17277582,0.00016999,2]
[388616123,1759257038186,-237.82722418,0.00016999,2]
[388616124,1759257038196,-21.34722273,0.00016999,2]
[388616125,1759257038229,-478.65277727,0.00016999,2]
[388616126,1759257038238,-500.0,0.00016999,2]
[388616127,1759257038247,-500.0,0.00016999,2]
[388616128,1759257038256,-500.0,0.00016999,2]
[388616129,1759257038265,-500.0,0.00016999,2]
[388616130,1759257038275,-500.0,0.00016999,2]
[388616131,1759257038285,-500.0,0.00016999,2]
[388616132,1759257038295,-500.0,0.00016999,2]
[388616133,1759257038304,-500.0,0.00016999,2]
[388616134,1759257038314,-500.0,0.00016999,2]
[388616135,1759257038324,-500.0,0.00016999,2]
[388616136,1759257038334,-547.52307868,0.00016999,2]
[388616137,1759257038343,-500.0,0.00016999,2]
[388616138,1759257038353,-500.0,0.00016999,2]
[388616139,1759257038362,-500.0,0.00016999,2]
[388616140,1759257038372,-577735.08646955,0.00017,2]
[388616141,1759257038383,-3781800.70902793,0.00017,2]
[388616142,1759257038394,-11019.0,0.00017,2]
[388616143,1759257038405,-4068.86778573,0.00017,2]
[388616144,1759257038416,-2375.63805,0.00017,2]
[388616153,1759257038530,-8825.09043548,0.00017,2]
[388616159,1759257038590,-1499.93408,0.00017,2]
[388616176,1759257040286,-4644.99999999,0.00017,2]
[388616177,1759257040326,-551.24935575,0.00017,2]
[388616178,1759257040339,-1943467.38419651,0.00017,2]
[388616179,1759257040349,-2247723.05318631,0.00017,2]
[388616181,1759257040358,-503.78,0.00017051,2]
[388616183,1759257040367,-464.62274119,0.00017111,2]
[388616185,1759257040376,-195.0,0.00017111,2]
[388616187,1759257040386,-250.70092542,0.00017111,2]
[388616189,1759257040395,-1570.75451762,0.00017223,2]
[388616191,1759257040405,-111463.22843336,0.00017362,2]
[388616193,1759257040414,-1602.6081365,0.00017366,2]
[388616195,1759257040423,-4320.27995339,0.0001737,2]
[388616196,1759257040432,-273.04774768,0.00017375,2]
[388616197,1759257040442,-150.0,0.00017378,7]
[388616198,1759257040451,-587.12881953,0.00017379,2]
[388616199,1759257040460,-1771.62534014,0.00017379,2]
[388616201,1759257040470,-595.92596961,0.00017379,2]
[388616202,1759257040479,-1602.6081365,0.00017381,2]
[388616203,1759257040488,-1602.6081365,0.00017383,2]
[388616204,1759257040497,-676.89095987,0.00017386,2]
[388616205,1759257040507,-3495.3319966,0.00017386,2]
[388616206,1759257040516,-111463.22843336,0.00017389,2]
[388616207,1759257040526,-111463.22843336,0.0001739,2]
[388616208,1759257040536,-3495.3319966,0.00017392,2]
[388616209,1759257040546,-4319.80264619,0.00017393,2]
[388616210,1759257040558,-12916.15647447,0.00017394,2]
[388616211,1759257040568,-16787.06723362,0.00017394,2]
[388616212,1759257040578,-676.89095987,0.00017395,2]
[388616213,1759257040587,-273.04774768,0.00017396,2]
[388616214,1759257040597,-16787.06723362,0.00017397,2]
[388616215,1759257040609,-1771.62534014,0.00017399,2]
[388616216,1759257040625,-3495.3319966,0.000174,2]
[388616217,1759257040635,-1771.62534014,0.00017401,2]
[388616218,1759257040645,-6347.75046972,0.00017404,2]
[388616219,1759257040655,-595.92596961,0.00017408,2]
[388616220,1759257040664,-261.05473739,0.00017414,2]
[388616221,1759257040674,-3495.3319966,0.00017415,2]
[388616222,1759257040683,-6347.75046972,0.00017418,2]
[388616223,1759257040694,-273.04774768,0.00017418,2]
[388616224,1759257040703,-111463.22843336,0.00017418,2]
[388616225,1759257040713,-4319.80264619,0.00017419,2]
[388616226,1759257040723,-587.12881953,0.00017425,2]
[388616227,1759257040733,-4320.27995339,0.00017425,2]
[388616228,1759257040742,-587.12881953,0.00017425,2]
[388616229,1759257040751,-4319.80264619,0.00017427,2]
[388616230,1759257040761,-273.04774768,0.00017429,2]
[388616231,1759257040771,-111463.22843336,0.00017434,2]
[388616232,1759257040780,-12916.15647447,0.00017436,2]
[388616233,1759257040789,-4319.80264619,0.00017437,2]
[388616234,1759257040800,-16787.06723362,0.00017438,2]
[388616235,1759257040809,-1771.62534014,0.0001744,2]
[388616236,1759257040819,-250.0,0.00017445,2]
[388616237,1759257040828,-6347.75046972,0.00017445,2]
[388616238,1759257040838,-676.89095987,0.00017447,2]
[388616239,1759257040848,-1771.62534014,0.00017449,2]
[388616240,1759257040857,-595.92596961,0.0001745,2]
[388616241,1759257040867,-676.89095987,0.0001745,2]
[388616242,1759257040876,-4320.27995339,0.00017452,2]
[388616243,1759257040886,-676.89095987,0.00017453,2]
[388616244,1759257040896,-73235.73073064,0.00017453,2]
[388616245,1759257040905,-12916.15647447,0.00017453,2]
[388616246,1759257040915,-261.05473739,0.00017455,2]
[388616247,1759257040925,-16787.06723362,0.00017457,2]
[388616248,1759257040935,-1602.6081365,0.00017458,2]
[388616249,1759257040944,-595.92596961,0.00017459,2]
[388616250,1759257040954,-587.12881953,0.0001746,2]
[388616251,1759257040966,-595.92596961,0.00017463,2]
[388616252,1759257040979,-6347.75046972,0.00017463,2]
[388616253,1759257040989,-273.04774768,0.00017466,2]
[388616254,1759257040999,-12916.15647447,0.00017467,2]
[388616255,1759257041009,-4320.27995339,0.0001747,2]
[388616256,1759257041024,-4320.27995339,0.00017471,2]
[388616257,1759257041034,-3495.3319966,0.00017474,2]
[388616258,1759257041043,-1602.6081365,0.00017477,2]
[388616259,1759257041055,-4319.80264619,0.00017479,2]
[388616260,1759257041064,-261.05473739,0.00017483,2]
[388616261,1759257041074,-6347.75046972,0.00017483,2]
[388616262,1759257041084,-261.05473739,0.00017487,2]
[388616263,1759257041093,-73235.73073064,0.00017488,2]
[388616264,1759257041103,-73235.73073064,0.00017492,2]
[388616265,1759257041113,-16787.06723362,0.00017492,2]
[388616266,1759257041123,-12916.15647447,0.00017493,2]
[388616267,1759257041132,-261.05473739,0.00017495,2]
[388616268,1759257041142,-73235.73073064,0.00017497,2]
[388616269,1759257041152,-73235.73073064,0.00017497,2]
[388616270,1759257041162,-587.12881953,0.00017498,2]
[388616271,1759257041172,-1000.0,0.00017521,2]
[388616272,1759257041181,-1000.0,0.00017521,2]
[388616273,1759257041191,-152.0,0.000176,2]
[388616274,1759257041200,-212.59401644,0.00017798,2]
[388616275,1759257041212,-122741.49474491,0.0001789,2]
[388616276,1759257041222,-150.0,0.000179,2]
[388616277,1759257041232,-2000.0,0.00018,2]
[388616278,1759257041242,-2000.0,0.00018,2]
[388616279,1759257041253,-2000.0,0.00018,2]
[388616280,1759257041263,-2000.0,0.00018,2]
[388616281,1759257041274,-760.82,0.00018,2]
[388616282,1759257041284,-1000.0,0.00018068,2]
[388616283,1759257041294,-1500.0,0.00018068,2]
[388616284,1759257041304,-708.44,0.00018078,2]
[388616285,1759257041314,-2368.17949763,0.00018082,2]
[388616286,1759257041324,-250.0,0.00018087,2]
[388616287,1759257041333,-170.96426968,0.000181,2]
[388616288,1759257041343,-385.27,0.00018105,2]
[388616289,1759257041353,-185.88,0.00018115,2]
[388616290,1759257041363,-200.0,0.00018138,2]
[388616291,1759257041373,-1000.0,0.00018176,2]
[388616292,1759257041383,-261.44,0.00018183,2]
[388616293,1759257041393,-341.58,0.0001824,2]
[388616294,1759257041403,-161.89065438,0.00018293,2]
[388616295,1759257041417,-370.32,0.00018329,2]
[388616296,1759257041426,-1500.0,0.00018329,2]
[388616297,1759257041436,-500.31033319,0.00018473,2]
[388616298,1759257041446,-500.0,0.00018473,2]
[388616299,1759257041456,-500.0,0.00018473,2]
[388616300,1759257041468,-500.07810043,0.00018473,2]
[388616301,1759257041478,-557.96894384,0.00018473,2]
[388616302,1759257041488,-500.0,0.00018473,2]
[388616303,1759257041498,-500.0,0.00018473,2]
[388616304,1759257041509,-500.0,0.00018473,2]
[388616305,1759257041519,-522.58685652,0.00018473,2]
[388616306,1759257041530,-500.66514915,0.00018473,2]
[388616307,1759257041540,-500.1030252,0.00018473,2]
[388616308,1759257041550,-159.983392,0.00018473,2]
[388616309,1759257041560,-500.0,0.00018473,2]
[388616310,1759257041570,-500.44024999,0.00018473,2]
[388616311,1759257041580,-500.10340089,0.00018473,2]
[388616312,1759257041590,-500.44522544,0.00018473,2]
[388616313,1759257041600,-500.0,0.00018473,2]
[388616314,1759257041611,-275640.4800997,0.000185,2]
[388616315,1759257041621,-2000.0,0.00018616,2]
[388616316,1759257041631,-7965.41053268,0.00018658,2]
[388616317,1759257041644,-578.20924308,0.00018658,2]
[388616318,1759257041654,-231.28369723,0.00018658,2]
[388616319,1759257041663,-1680.0,0.00018658,2]
[388616320,1759257041673,-322.6107,0.00018669,2]
[388616321,1759257041683,-258.16370067,0.00018669,2]
[388616322,1759257041693,-151.0,0.00018669,2]
[388616323,1759257041703,-601.3376128,0.00018669,2]
[388616324,1759257041713,-1372.17,0.00018669,2]
[388616325,1759257041723,-12934.51971392,0.0001867,2]
[388616326,1759257041733,-302.17,0.0001867,2]
[388616327,1759257041743,-150.39,0.0001867,2]
[388616328,1759257041753,-305.85,0.0001867,2]
[388616329,1759257041763,-151.61,0.00018679,2]
[388616330,1759257041774,-305.05,0.00018679,2]
[388616331,1759257041784,-152.9,0.00018679,2]
[388616332,1759257041793,-304.73,0.00018679,2]
[388616333,1759257041804,-62532.1846,0.0001868,2]
[388616334,1759257041813,-1000.0,0.0001868,2]
[388616335,1759257041823,-150.0,0.0001868,2]
[388616336,1759257041833,-150.0,0.0001868,2]
[388616337,1759257041843,-500.0,0.0001868,2]
[388616338,1759257041853,-200.0,0.0001868,2]
[388616339,1759257041863,-500.0,0.0001868,2]
[388616340,1759257041874,-150.0,0.0001868,2]
[388616341,1759257041884,-150.0,0.0001868,2]
[388616342,1759257041894,-153.13753536,0.0001868,2]
[388616343,1759257041903,-451.0,0.0001868,2]
[388616344,1759257041913,-500.0,0.0001868,2]
[388616345,1759257041923,-500.0,0.0001868,2]
[388616346,1759257041933,-500.0,0.0001868,2]
[388616347,1759257041942,-500.0,0.0001868,2]
[388616348,1759257041952,-1800.0,0.0001868,2]
[388616349,1759257041963,-150.52,0.0001868,2]
[388616350,1759257041972,-152.39,0.0001868,2]
[388616351,1759257041984,-150.04,0.0001868,2]
[388616352,1759257041995,-151.4,0.0001868,2]
[388616353,1759257042004,-151.37,0.0001868,2]
[388616354,1759257042013,-150.76,0.0001868,2]
[388616355,1759257042024,-150.74,0.0001868,2]
[388616356,1759257042033,-151.55,0.0001868,2]
[388616357,1759257042043,-301.88,0.0001868,2]
[388616358,1759257042054,-150.45,0.0001868,2]
[388616359,1759257042064,-150.14,0.0001868,2]
[388616360,1759257042073,-305.9,0.0001868,2]
[388616361,1759257042084,-152.4,0.0001868,2]
[388616362,1759257042094,-150.93,0.0001868,2]
[388616363,1759257042105,-152.86,0.0001868,2]
[388616364,1759257042115,-305.86,0.0001868,2]
[388616365,1759257042124,-150.92,0.0001868,2]
[388616366,1759257042134,-303.98,0.0001868,2]
[388616367,1759257042143,-151.97,0.0001868,2]
[388616368,1759257042153,-1075.0,0.00018691,2]
[388616369,1759257042163,-500.0,0.000187,2]
[388616370,1759257042173,-250.0,0.000187,2]
[388616371,1759257042183,-150.0,0.000187,2]
[388616372,1759257042192,-300.41487226,0.000187,2]
[388616373,1759257042202,-2000.0,0.000187,2]
[388616374,1759257042212,-500.0,0.000187,2]
[388616375,1759257042222,-195.0,0.000187,2]
[388616376,1759257042232,-300.0,0.000187,2]
[388616377,1759257042242,-150.57187654,0.000187,4]
[388616378,1759257042252,-614.32261267,0.00018713,2]
[388616379,1759257042262,-500.0,0.00018725,2]
[388616380,1759257042272,-165.87,0.00018728,2]
[388616381,1759257042282,-168.0,0.00018744,2]
[388616382,1759257042291,-1000.0,0.00018779,5]
[388616383,1759257042301,-1000.0,0.00018779,5]
[388616384,1759257042311,-1000.0,0.00018779,5]
[388616385,1759257042329,-1000.0,0.00018779,5]
[388616386,1759257042341,-1000.0,0.00018779,5]
[388616387,1759257042351,-1000.0,0.00018779,5]
[388616388,1759257042361,-390.34604609,0.00018779,5]
[388616389,1759257042371,-500.0,0.00018779,5]
[388616390,1759257042380,-150.0,0.00018779,5]
[388616391,1759257042390,-500.0,0.00018779,5]
[388616392,1759257042399,-252.20298808,0.00018779,5]
[388616393,1759257042410,-151.83344632,0.00018779,5]
[388616394,1759257042419,-150.0,0.00018779,2]
[388616395,1759257042430,-1031.0,0.00018779,5]
[388616396,1759257042440,-150.0,0.00018779,5]
[388616397,1759257042449,-500.0,0.00018779,5]
[388616398,1759257042460,-150.60953712,0.00018779,5]
[388616399,1759257042470,-150.0,0.00018779,5]
[388616400,1759257042480,-151.02496615,0.00018779,5]
[388616401,1759257042490,-150.0,0.00018779,5]
[388616402,1759257042499,-150.0,0.0001878,2]
[388616403,1759257042508,-167.28,0.00018781,2]
[388616404,1759257042518,-168.0,0.00018815,2]
[388616405,1759257042527,-168.0,0.00018836,2]
[388616406,1759257042536,-176.11,0.00018863,2]
[388616407,1759257042546,-1075.0,0.00018875,2]
[388616408,1759257042558,-150.52,0.0001888,2]
[388616409,1759257042568,-1244.0,0.000189,2]
[388616410,1759257042577,-151.41,0.00018941,2]
[388616411,1759257042587,-1372.17,0.00018943,2]
[388616412,1759257042596,-150.0,0.00018954,2]
[388616413,1759257042606,-150.0,0.00018954,2]
[388616414,1759257042616,-500.0,0.00018954,2]
[388616415,1759257042625,-500.0,0.00018954,2]
[388616416,1759257042635,-451.0,0.00018954,2]
[388616417,1759257042645,-500.0,0.00018954,2]
[388616418,1759257042655,-552.51845372,0.00018954,2]
[388616419,1759257042664,-500.0,0.00018954,2]
[388616420,1759257042674,-500.0,0.00018954,2]
[388616421,1759257042684,-1800.0,0.00018954,2]
[388616422,1759257042693,-1119.96,0.00018964,2]
[388616423,1759257042703,-285.58,0.00018964,2]
[388616424,1759257042713,-192.74,0.00018964,2]
[388616425,1759257042723,-168.0,0.00019003,2]
[388616426,1759257042733,-1000.0,0.00019021,2]
[388616427,1759257042742,-1000.0,0.00019021,2]
[388616428,1759257042751,-1000.0,0.00019021,2]
[388616429,1759257042761,-1000.0,0.00019021,2]
[388616430,1759257042771,-1000.0,0.00019021,2]
[388616431,1759257042781,-1000.0,0.00019021,2]
[388616432,1759257042791,-500.0,0.00019053,5]
[388616433,1759257042800,-500.0,0.00019053,5]
[388616434,1759257042811,-150.0,0.00019053,2]
[388616435,1759257042821,-1031.0,0.00019053,5]
[388616436,1759257042831,-500.0,0.00019053,5]
[388616437,1759257042841,-150.0,0.00019053,5]
[388616438,1759257042851,-150.0,0.00019053,5]
[388616439,1759257042860,-746.47,0.00019098,2]
[388616441,1759257042870,-1000.0,0.00019099,2]
[388616443,1759257042879,-151.83,0.00019124,2]
[388616445,1759257042889,-152.3,0.00019124,2]
[388616446,1759257042898,-152.01,0.00019124,2]